Cogmind - Beta 16 @@@ ROGUE MODE // 2025.11.30 @ 16:27:36 Player: Petvaria Result: Destroyed by DA-BSE(R) with Subdweller Laser Performance ------------- Evolutions (0) 0 Regions Visited (2) 400 Robots Destroyed (32) 160 Value Destroyed (610) 610 Prototype IDs (0) 0 Alien Tech Used (0) 0 Bonus (0) 0 TOTAL SCORE: 1170 Bonus ------- None Cogmind --------- Core Integrity 0/250 Matter 280/300 Energy 98/100 System Corruption 0% Temperature Cool (6) Movement Rolling (130) Ox2 Location -10/Subcaves Parts ------- > --- POWER (1) -------- (None) > --- PROPULSION (2) --- Subdweller Monowheel > --- UTILITY (2) ------ High-capacity Storage Unit > --- WEAPON (2) ------- Subdweller Beam Cannon Subdweller Machine Gun > --- INVENTORY (20) --- EM Pulse Gun Medium Laser Subdweller Laser Battle Rifle Subdweller Machine Gun SUBCON Basin (Full) Peak State ------------ > --- POWER ------------ Light Ion Engine > --- PROPULSION ------- Compact Wheel Subdweller Monowheel > --- UTILITY ---------- High-capacity Storage Unit > --- WEAPON ----------- Subdweller Laser Subdweller Beam Cannon > --- INVENTORY -------- EM Pulse Gun Medium Laser Battle Rifle Subdweller Machine Gun Subdweller Machine Gun SUBCON Basin [Rating: 27] Favorites ----------- Power Ion Engine Engine Ion Engine Propulsion Light Treads Treads Light Treads Wheel Compact Wheel Utility High-capacity Storage Unit Device Seismic Detector Storage High-capacity Storage Unit Weapon Medium Laser Energy Gun Medium Laser Energy Cannon Subdweller Beam Cannon Ballistic Gun Assault Rifle Ballistic Cannon Light Cannon Build | -11 -10 -10 ------- Run | Yrd Mat Sub Slots Evolved . | . . . Power . | . . . Propulsion . | . . . Utility . | . . . Weapon . | . . . Parts Attached 20 | 7 6 7 Power 2 | 1 1 . Engine 2 | 1 1 . Core . | . . . Reactor . | . . . Propulsion 5 | 2 . 3 Treads 2 | 2 . . Leg . | . . . Wheel 3 | . . 3 Hover . | . . . Flight . | . . . Utility 4 | 2 2 . Device 2 | 1 1 . Storage 2 | 1 1 . Processor . | . . . Hackware . | . . . Protection . | . . . Artifact . | . . . Weapon 9 | 2 3 4 Energy Gun 4 | 1 1 2 Energy Cannon 1 | . . 1 Ballistic Gun 3 | 1 1 1 Ballistic Cannon 1 | . 1 . Launcher . | . . . Special Weapon . | . . . Impact Weapon . | . . . Slashing Weapon . | . . . Piercing Weapon . | . . . Special Melee Weapon . | . . . Unidentified Prototypes . | . . . Parts Lost 10 | . 3 7 Power 2 | . 1 1 Propulsion 4 | . . 4 Utility 2 | . 1 1 Weapon 2 | . 1 1 Highest Loss Streak 3 | . 2 3 To Critical Strikes . | . . . Average Backups 11 | 3 14 7 Power . | . . . Propulsion 1 | 1 2 . Utility 4 | . 5 1 Weapon 5 | . 6 5 Tool/Special . | . . . Unused Backups 15 | . . 15 Power 1 | . . 1 Propulsion . | . . . Utility 5 | . . 5 Weapon 9 | . . 9 Tool/Special . | . . . Average Slot Usage (%) 94 | . 99 85 Engine 14 | . 14 14 Treads 19 | . 28 . Wheel 6 | . . 20 Device 11 | . 13 7 Storage 14 | . 14 14 Energy Gun 16 | . 13 23 Ballistic Gun 10 | . 14 2 Peak Build Rating 27 | 7 8 27 Average Rating 11 | 5 7 20 On Entrance 5 | . 7 8 Avg Prop Armor Cover (%) . | . . . Naked Turns . | . . . Heaviest Build 55 | 15 50 55 Greatest Support 40 | 40 40 40 Greatest Overweight (x) 4 | . 1 4 Average Overweight (x) 1 | . . 1 Largest Inventory Capacity 20 | 8 20 20 Average Capacity 19 | 7 19 20 Most Carried 20 | 5 18 20 Average Carried 15 | 3 14 18 Final Capacity 20 | 8 20 20 Final Carried 20 | 4 17 20 Class Distribution -------------------- 100% | Mutant Dominant Class ---------------- Mutant | -10/Materials Mutant | -10/Subcaves Resources | -11 -10 -10 ----------- Run | Yrd Mat Sub Matter Collected 533 | 291 180 62 Remotely . | . . . Salvage Created 961 | 197 438 326 Parts 82 | 14 39 29 Haulers Intercepted . | . . . Recyclers Shooed 1 | . 1 . Parts Field Recycled . | . . . Retrieved Matter . | . . . Parts Self-Destructed . | . . . Prevented . | . . . Parts Restored . | . . . Kills | -11 -10 -10 ------- Run | Yrd Mat Sub Combat Hostiles Destroyed 20 | . 13 7 Guns 20 | . 13 7 Classes Destroyed 8 | 3 4 1 Worker 3 | 2 1 . Tunneler 4 | 3 1 . Recycler 2 | 1 1 . Operator 1 | . 1 . Watcher 2 | . 2 . Swarmer 9 | . 9 . Grunt 4 | . 4 . Subdweller 7 | . . 7 Best Kill Streak 6 | 6 6 2 Combat Bots Only 5 | . 5 2 Max Kills in Single Turn 2 | 2 1 1 Gunslinging . | . . . Exploded . | . . . Melee . | . . . Uniques/NPCs Destroyed . | . . . Combat | -11 -10 -10 -------- Run | Yrd Mat Sub Hostile Shots Fired 111 | . 74 37 Missed 28 | . 15 13 Hits 83 | . 59 24 Projectile 83 | . 59 24 Damage Taken 1198 | . 627 571 Core 272 | . 121 151 Absorbed by Shields . | . . . Core Remaining (%) 100 | 100 . . Volleys Fired 105 | 7 62 36 Largest 2 | 2 2 2 Hottest 110 | 70 70 110 Shots Fired 205 | 14 122 69 Gun 197 | 14 120 63 Cannon 8 | . 2 6 Launcher . | . . . Special . | . . . Kinetic 83 | 7 62 14 Thermal 122 | 7 60 55 Explosive . | . . . Electromagnetic . | . . . Robot Hit Streak 17 | 7 8 17 Robot Miss Streak 4 | 4 4 4 Penetration Max . | . . . Secondary Targets 2 | . . 2 Max Gunslinging Chain 1 | . . 1 Shots Hit Robots 128 | 7 69 52 Core Hits 52 | 6 30 16 Critical Kills . | . . . Critical Parts Destroyed 1 | . 1 . Critical Strikes 3 | . 2 1 Burn 2 | . 1 1 Destroy 1 | . 1 . Melee Attacks . | . . . Impact . | . . . Slashing . | . . . Piercing . | . . . Sneak Attacks . | . . . Combat Hostiles . | . . . Follow-up Attacks . | . . . Damage Inflicted 1734 | 137 842 755 Guns 1647 | 137 832 678 Cannons 77 | . . 77 Explosions . | . . . Melee . | . . . Ramming 10 | . 10 . Kinetic 599 | 60 360 179 Thermal 1125 | 77 472 576 Explosive . | . . . Electromagnetic . | . . . Impact . | . . . Slashing . | . . . Piercing . | . . . Highest Corruption . | . . . Average Corruption . | . . . Corruption Purged . | . . . Corruption Blocked . | . . . Overload Shots . | . . . Overflow Damage . | . . . Projectiles . | . . . Explosions . | . . . Melee . | . . . Knockbacks . | . . . Impact . | . . . Kinetic . | . . . Secondary . | . . . Self-Inflicted Damage . | . . . Shots . | . . . Rammed 2 | . 2 . Targets Rammed 2 | . 2 . Kicked . | . . . Crushed . | . . . Highest Temperature 361 | 45 361 4 Average Temperature 78 | 18 87 1 Received Heat Transfer 360 | . 258 102 Effects 2 | . 2 . Energy Bleed 1 | . 1 . Damage (minor) 1 | . 1 . Siege Activations . | . . . Martial Activations . | . . . Shielding Activations . | . . . Robots Disrupted . | . . . Combat Hostiles . | . . . Robots Corrupted . | . . . Combat Hostiles . | . . . Parts Fried . | . . . Impact Corruptions . | . . . Robots Melted . | . . . Combat Hostiles . | . . . Parts Melted 9 | 1 3 5 Heat Transferred 3086 | 222 1480 1384 Parts Sabotaged . | . . . Parts Stolen . | . . . Parts Stripped . | . . . Power Chain Reactions . | . . . Alert | -11 -10 -10 ------- Run | Yrd Mat Sub Maximum Alert Level . | . . . Low Security (%) 100 | 100 100 . Level 1 . | . . . Level 2 . | . . . Level 3 . | . . . Level 4 . | . . . Level 5 . | . . . High Security . | . . . Max Security . | . . . Peak Influence 112 | 10 112 . Initial 6 | . 6 . Average 26 | 3 28 . Influence Increases 397 | 30 367 . Destroy 0b10 Robot/C 260 | . 260 . Destroy 0b10 Robot/NC 60 | 30 30 . Destroy Leader 54 | . 54 . Successful Hack 22 | . 22 . Destroy Structure 1 | . 1 . Influence Decreases 397 | 20 377 . Entered New Map 4 | . 4 . Time Decay 363 | 20 343 . Lost Part 30 | . 30 . Squads Dispatched 1 | . 1 . Investigation . | . . . Extermination . | . . . Reinforcement 1 | . 1 . Assault . | . . . Garrison . | . . . Intercept . | . . . Searches Triggered . | . . . Construction Impeded . | . . . Haulers Reinforced . | . . . Active Scanning Responses . | . . . Cargo Convoy Interrupts . | . . . Stealth | -11 -10 -10 --------- Run | Yrd Mat Sub Distress Signals 2 | . 2 . Communications Jammed . | . . . Distress Signals . | . . . Times Spotted 34 | . 25 9 Peak Tracking Total 6 | . 6 2 Tactical Retreats . | . . . Traps | -11 -10 -10 ------- Run | Yrd Mat Sub Traps Triggered 1 | . . 1 Indirectly . | . . . Trap Hack Attempts . | . . . Triggered . | . . . Disarmed . | . . . Reprogrammed . | . . . Reused . | . . . Traps Extracted . | . . . Installed . | . . . Triggered . | . . . Machines | -11 -10 -10 ---------- Run | Yrd Mat Sub Machines Disabled . | . . . Max in Single Turn . | . . . Machines Repaired . | . . . Machines Dismantled . | . . . Machines Sabotaged . | . . . Overloaded Fab Kills . | . . . Hacking | -11 -10 -10 --------- Run | Yrd Mat Sub Machines Accessed 9 | . 6 3 Terminals 6 | . 6 . Fabricators . | . . . Repair Stations . | . . . Recycling Units . | . . . Scanalyzers . | . . . Garrison Access . | . . . Total Hacks 27 | . 20 7 Successful 17 | . 10 7 Failed 10 | . 10 . Catastrophic 1 | . 1 . Database Lockouts . | . . . Manual 19 | . 19 . Terminals 20 | . 20 . Fabricators . | . . . Repair Stations . | . . . Recycling Units . | . . . Scanalyzers . | . . . Garrison Access . | . . . Terminal Hacks 8 | . 1 7 Record 5 | . . 5 Open Door 1 | . . 1 Hauler Manifests 1 | . 1 . Release Object 1 | . . 1 Fabricator Hacks . | . . . Repair Station Hacks . | . . . Recycling Unit Hacks . | . . . Scanalyzer . | . . . Garrison Access Hacks . | . . . Unauthorized Hacks 9 | . 9 . Terminals 9 | . 9 . Botnet 3 | . 3 . Operators 1 | . 1 . Skim 5 | . 5 . Fabricators . | . . . Repair Stations . | . . . Recycling Units . | . . . Scanalyzers . | . . . Garrison Access . | . . . Data Cores Recovered . | . . . Used . | . . . Hacking Detections 5 | . 5 . Full Trace Events . | . . . Feedback Events . | . . . Feedback Blocked . | . . . Robot Schematics Acquired . | . . . Robots Built . | . . . Authchips . | . . . Time . | . . . Total Robot Build Rating . | . . . Part Schematics Acquired . | . . . Parts Built . | . . . Authchips . | . . . Time . | . . . Total Part Build Rating . | . . . Part Studies Acquired . | . . . Parts Repaired . | . . . Time . | . . . Parts Recycled . | . . . Recycled Matter . | . . . Retrieved Matter . | . . . Retrieved Components . | . . . Parts Scanalyzed . | . . . Part Schematics Acquired . | . . . Parts Damaged . | . . . Bothacking | -11 -10 -10 ------------ Run | Yrd Mat Sub Used RIF Installer . | . . . Robots Hacked . | . . . Non-combat . | . . . Combat . | . . . Robot Hacks Applied . | . . . Relay Couplers Released . | . . . Fabnet Peak Effective % . | . . . Robots Rewired . | . . . Allies Hacked . | . . . Hacks Repelled . | . . . Allies | -11 -10 -10 -------- Run | Yrd Mat Sub Total Allies . | . . . Largest Group . | . . . Highest-Rated Group . | . . . Highest-Rated Ally . | . . . Total Orders . | . . . Ally Attacks . | . . . Total Damage . | . . . Kills . | . . . Allies Corrupted . | . . . Allies Melted . | . . . Intel | -11 -10 -10 ------- Run | Yrd Mat Sub Active Infowar (turns) 1809 | 15 1428 366 Seismic 1809 | 15 1428 366 Robot Analysis Total . | . . . Derelict Logs Recovered . | . . . Drone Launches . | . . . Drone Recoveries . | . . . Exploration | -11 -10 -10 ------------- Run | Yrd Mat Sub Turns Passed 2355 | 108 1531 716 Spaces Moved 1012 | 53 495 464 Core 13 | 13 . . Treads 542 | 40 495 7 Legs . | . . . Wheels 457 | . . 457 Hover . | . . . Flight . | . . . Fastest Speed 50 | 50 160 105 Average Speed 180 | 133 238 124 Slowest Speed 240 | 160 240 240 Overloaded Moves . | . . . Propulsion Burnouts . | . . . Robots Hopped . | . . . Potential Cave-ins . | . . . Cave-ins Triggered . | . . . Exploration Rate (%) 43 | 4 86 40 Regions Visited 2 Branch Regions 1 Pre-discovered Areas 1 | . 1 . Known Exits Taken 1 | . 1 . Unknown Exits Taken 1 | 1 . . Scrap Searched 1 | . . 1 Spaces Dug . | . . . Terrain Destroyed 1 | . . 1 Melee . | . . . Projectile 1 | . . 1 AOE . | . . . Terrain Rammed . | . . . Walls Destroyed . | . . . Machines Disabled . | . . . Actions | -11 -10 -10 --------- Run | Yrd Mat Sub Total 1344 | 77 722 545 Wait 152 | . 142 10 Move 1010 | 52 494 464 Hop . | . . . Pick Up 37 | 11 16 10 Fast Attach . | . . . Attach 14 | 7 3 4 Detach . | . . . Swap 7 | . 3 4 Drop 17 | . . 17 Fire 105 | 7 62 36 Melee . | . . . Ram . | . . . Kick . | . . . Crush 2 | . 2 . Escape Stasis . | . . . Rewire . | . . . Trap . | . . . Miscellaneous . | . . . Route ------- -11/Scrapyard -10/Materials (discovered 5 exits: *Mat x3 / [*Min] / *Sub) -10/Subcaves (discovered 1 exit: [*Mat]) History --------- Turn | Location | Event 43 | -11/Scrapyard | Discovered new exit (range 15) 109 | -11/Scrapyard | Entered Materials 315 | -10/Materials | Build established: Mutant 637 | -10/Materials | Discovered new exit (range 16) 1013 | -10/Materials | Learned Storage emergency access door positions 1082 | -10/Materials | Learned Storage security intel 1118 | -10/Materials | Discovered new exit (range 16) 1140 | -10/Materials | Identified exit to Materials 1188 | -10/Materials | Learned location of Storage (-9) 1226 | -10/Materials | Learned location of 1 exit from Storage 1255 | -10/Materials | Learned Storage trap positions 1275 | -10/Materials | Loaded intel: 11 trap records 1302 | -10/Materials | Discovered new exit (range 5) 1307 | -10/Materials | Learned location of 2 exits from Materials 1349 | -10/Materials | Identified exit to Subcaves 1640 | -10/Materials | Entered Subcaves 1641 | -10/Subcaves | Approached by a straggling Scientist 1683 | -10/Subcaves | Core integrity fell below 50% 1715 | -10/Subcaves | Lost 3 parts (2n1w) 1813 | -10/Subcaves | Found SUBCON Basin 1890 | -10/Subcaves | Visited Clippyterm 1893 | -10/Subcaves | Learned Factory trap positions 1893 | -10/Subcaves | Learned Factory emergency access door positions 2029 | -10/Subcaves | Core integrity fell below 20% 2131 | -10/Subcaves | Discovered new exit (range 12) 2177 | -10/Subcaves | Shifting Twisted Machinery released Sub. Machine Gun 2281 | -10/Subcaves | Shifting Twisted Machinery released Shrapnel Trap 2356 | -10/Subcaves | Destroyed by DA-BSE(R) with Subdweller Laser Last Messages --------------- An expanding cloud of shrapnel blasts out in all directions. KW-G53(c) destroyed. EXIT=FOUND Sub. Machine Gun falls loose from the Twisted Machinery. Acquired Sub. Machine Gun. Searching scrap... Found Sub. Beam Cannon. Found 50 Matter. Acquired 10 matter. Dropped Med. Laser. Acquired Sub. Beam Cannon. Shrapnel Trap falls loose from the Twisted Machinery. Com. Wheel destroyed. Disposable Heat Sink melted. JO-EXM(R) destroyed. Lgt. Ion Engine destroyed. Sub. Beam Cannon shoots sparks and powers down. Map ----- +----------------------------------------------------+ | ??????????# "####"# ??????? ????????????????????? | | ??????????## #""""" ??????????????????????????? | | ???????????# """ ??????????????????????????? | | ??????????## "" #""???????????????????????????? | | ??????????# "###??""?????????????????????????? | | ??????????## "" #### ?????????????????????????? | | ???????????## " ## ?????????????????????????? | | ???????????## ## ?????????????????????????? | | ??????????## ##?# #????????????????????????? | | ??????????# #??? ????????????????????????? | | ??????????## #??? ####?????????????????????? | | ???????????## #??? #?????????????????????? | | ????????????## ##??? #?????????????????????? | | ?????????????## ####?# #?????????????????????? | | ??????????????# ### #?????????????????????? | | ??????????????# ""#??????????????????????? | | ??????????????## "#??????????????????????? | | ???????????????###### #????????#?????????????? | | ?????????????????#### #?????"" #?????????????? | | ????????????????## #????? " #?????????????? | | ????????????????# ##???? " ??????????????? | | ????????????##### #??? #??????????????? | | ???????????## #???" #???# ????????? | | ???????????# ##???" ## ?????????? | | ???????????## #####"" " ???????????? | | ????????????#### @[## """"" ???????????? | | ???????????????## ## !%]R """""???????????? | | ????????????????##?## *! """ """"???????????? | | ????????????????????### #" "###"##???????????? | | ??????????????????????## ######????????????????? | | ???????????????????????#####?????????????????????? | | ?????????????????????????????????????????????????? | | ?????????????????????????????????????????????????? | | ?????????????????????????????????????????????????? | | ?????????????????????????????????????????????????? | | ?????????????????????????????????????????????????? | | ?????????????????????????????????????????????????? | | ?????????????????????????????????????????????????? | | ?????????????????????????????????????????????????? | | ?????????????????????????????????????????????????? | | ?????????????????????????????????????????????????? | | ?????????????????????????????????????????????????? | | ?????????????????????????????????????????????????? | | ?????????????????????????????????????????????????? | | ?????????????????????????????????????????????????? | | | | | | | | | | | +----------------------------------------------------+ Best States ------------- Heat Dissipation 25 Energy Generation 10 Energy Capacity 250 Matter Stores 300 Matter Capacity 300 Sight Range 16 Terrain Scan Density 10 Evasion (%) 50 Recoil Reduction 2 Item Schematics ----------------- None Robot Schematics ------------------ None Fabricated ------------ Nothing Repaired ---------- Nothing Studied --------- None Alien Tech Used ----------------- None Achievements -------------- None Challenges ------------ None Game ------ Seed AblativeFieldthrustThruster Manual? 0 Play Time 00:14:34 Cumulative 344.1 hours Start 2025.11.30 @ 16:13:01 End 2025.11.30 @ 16:27:36 Sessions 1 Manual Loads 0 Difficulty Rogue Special Mode None Game No. 252 Rogue 252 Adventurer 0 Explorer 0 Win Type - Total 27 Types 14/1/7/2/1/0/0/1/0/1 Lore% 95 Gallery% 88 Achievement% 69 Wizard Run 0 Options --------- Layout 1 ASCII 0 Keyboard 0 Movement Numpad Keybinds 0 Fullscreen 1 Font 24/Proggy Map View 50x35 Zoom Use 0% Tactical HUD 0 Map Filters NONE Filters NONE Steam 1 RUN: 7c02a440-ec74-41c8-8c86-74634f83c715